bitfinex/quotes_ETHUSD_20250123
["timestamp","ask_amount","ask_price","bid_price","bid_amount"]
[1737649334157,3.05428,3274.1,3272.9,4.70032]
[1737649334158,0.60984403,3273.3,3272.9,4.70032]
[1737649334360,3.0,3274.3,3273.0,0.55]
[1737649334561,1.5282,3274.8,3273.2,0.55]
[1737649334892,0.61173852,3273.4,3272.9,1.645]
[1737649335038,3.05514,3273.2,3272.9,1.645]
[1737649335242,3.05514,3273.2,3271.9,4.601]
[1737649335243,3.0,3273.1,3271.9,4.601]
[1737649335442,3.0,3273.3,3272.3,0.55]
[1737649335675,3.0,3273.3,3272.5,0.55]
[1737649335965,1.5914,3274.2,3272.7,0.55]
[1737649336167,3.0,3273.9,3272.7,0.55]
[1737649336433,3.05516,3273.2,3272.6,1.5733]
[1737649336687,3.0,3272.8,3272.6,1.5733]
[1737649336887,3.05521,3273.1,3272.7,0.55]
[1737649337090,3.0,3273.1,3272.6,1.5733]
[1737649337290,3.0,3273.4,3272.7,0.55]
[1737649337443,0.60153269,3273.5,3272.7,0.55]
[1737649337649,3.05434,3274.1,3272.7,3.60557]
[1737649337846,3.05438,3274.0,3272.9,0.55]
[1737649338051,3.0541,3274.3,3272.9,3.60538]
[1737649338275,1.6417,3274.7,3273.1,0.55]
[1737649338481,3.05448,3273.9,3272.9,0.55]
[1737649338790,0.60385498,3274.0,3272.9,0.55]
[1737649338987,3.0,3273.0,3272.8,1.6203]
[1737649339292,3.0,3273.2,3272.9,0.55]
[1737649339457,0.5977437,3273.2,3272.9,0.76703]
[1737649339661,0.5977437,3273.2,3272.9,0.55]
[1737649340098,0.15276418,3274.7,3272.9,0.55]
[1737649340312,0.60516424,3274.0,3273.0,1.6378]
[1737649340513,3.054,3274.4,3273.1,3.60512]
[1737649340664,1.91814926,3275.2,3273.5,0.55]
[1737649340870,1.91814926,3275.9,3273.6,1.6378]
[1737649341073,0.60479755,3274.8,3273.9,3.05439]
[1737649341278,3.0,3274.6,3273.8,1.6378]
[1737649341503,3.05387,3274.6,3273.8,1.6378]
[1737649341708,3.05389,3274.6,3273.9,0.71378]
[1737649341887,3.0,3274.3,3273.9,0.55]
[1737649342071,6.05385,3274.6,3273.9,0.55]
[1737649342269,3.0,3274.4,3273.9,0.55]
[1737649342503,3.054,3274.4,3273.9,0.55]
[1737649342813,3.05396,3274.5,3273.9,0.55]
[1737649342992,0.60479755,3274.8,3273.9,0.76878]
[1737649343184,1.91814926,3275.9,3273.9,3.8232]
[1737649343378,0.62313215,3275.0,3273.9,0.76878]
[1737649343579,3.62313215,3275.0,3273.9,0.76878]
[1737649343784,3.0,3274.0,3273.8,1.6378]
[1737649343978,3.0,3274.2,3273.8,1.6378]
[1737649344185,3.05418,3274.2,3273.9,0.55]
[1737649344397,3.0,3274.1,3272.9,2.0943]
[1737649344568,3.05399,3274.4,3272.9,2.0943]
[1737649344569,3.0,3274.4,3273.2,0.55]
[1737649344776,0.60913674,3274.2,3273.6,0.55]
[1737649344981,0.60913674,3274.2,3273.5,1.5443]
[1737649345181,3.0,3273.9,3273.5,1.5443]
[1737649345406,0.60913674,3274.2,3273.1,1.5443]
[1737649345720,3.0,3273.0,3272.5,1.5443]
[1737649345880,3.05493,3273.4,3272.5,1.5443]
[1737649345881,3.0,3273.5,3272.6,0.80443]
[1737649346282,3.0,3273.1,3272.6,0.80443]
[1737649346485,3.0,3273.0,3272.6,0.55]
[1737649346684,3.0,3273.2,3272.6,0.55]
[1737649346887,3.05494,3273.4,3272.6,0.55]
[1737649347067,3.0,3273.5,3272.6,0.55]
[1737649347412,3.05364,3274.8,3272.5,1.5443]
[1737649347413,1.5817,3274.6,3272.5,1.5443]
[1737649347617,1.5817,3274.6,3271.7,0.25]
[1737649347618,0.61530939,3273.8,3272.7,1.663]
[1737649347831,3.05368,3274.8,3273.4,0.55]
[1737649347986,1.6534,3275.1,3273.4,0.55]
[1737649348326,3.05411,3274.3,3273.4,0.55]
[1737649348825,3.05393,3274.5,3273.4,0.55]
[1737649348987,3.0,3274.4,3273.6,0.55]
[1737649349185,0.6097069,3274.0,3273.6,0.55]
[1737649349513,0.6097069,3274.0,3273.3,1.663]
[1737649349825,3.0,3273.7,3272.7,1.6522]
[1737649350053,3.0,3273.3,3272.7,1.6522]
[1737649350188,3.05517,3273.2,3272.8,0.180663]
[1737649350389,3.05532,3273.0,3272.7,1.6522]
[1737649350693,3.05532,3273.0,3271.8,1.6522]
[1737649350694,3.0,3273.0,3271.8,1.6522]
[1737649350888,6.05537,3273.0,3271.8,1.6522]
[1737649351130,3.0,3272.4,3271.8,1.6522]
[1737649351336,3.0,3272.2,3271.8,1.6522]
[1737649351490,3.0,3272.2,3271.8,1.81742]
[1737649351687,3.0,3272.6,3271.8,1.81742]
[1737649351909,0.60451244,3272.7,3272.0,3.05621]
[1737649352189,3.05483,3273.5,3272.2,3.05603]
[1737649352397,0.60316799,3273.1,3271.8,1.81742]
[1737649352597,0.60316799,3273.1,3272.2,0.55]
[1737649353215,0.60316799,3273.1,3272.2,3.60599]
[1737649353434,3.0545,3273.9,3272.1,3.759]
[1737649353654,0.61050134,3273.6,3272.5,3.6057]
[1737649353957,4.70539,3274.1,3273.3,0.55]
[1737649353958,3.05427,3274.1,3273.3,0.55]
[1737649354236,3.05427,3274.1,3273.2,1.5294]
[1737649354237,0.61954581,3274.1,3273.5,0.55]
[1737649354593,3.05372,3274.7,3273.5,3.6048]
[1737649354955,0.61374024,3274.7,3274.0,0.55]
[1737649355094,0.61374024,3274.7,3274.2,0.55]
[1737649355298,3.05441,3274.0,3273.7,1.5294]
[1737649355632,0.61374024,3274.7,3273.2,1.5583]
[1737649355633,6.05408,3274.3,3273.2,1.5583]
[1737649355838,3.0,3274.0,3273.2,1.5583]
[1737649355997,3.0,3273.9,3273.3,0.15583]
[1737649356530,3.0,3274.3,3273.4,0.55]
[1737649356736,3.05377,3274.7,3273.5,3.05477]
[1737649356901,3.05354,3274.9,3273.6,0.55]
[1737649357255,3.05354,3274.9,3274.0,0.55]
[1737649357256,3.0,3274.8,3274.0,0.55]
[1737649357446,3.05337,3275.1,3274.2,0.55]
[1737649357749,3.05299,3275.5,3274.4,0.55]
[1737649357958,3.05267,3275.9,3274.9,0.55]
[1737649358122,3.05235,3276.2,3275.1,0.55]
[1737649358444,0.62501908,3275.6,3274.8,1.5108]
[1737649358757,3.0,3275.1,3274.2,1.6004]
[1737649359077,0.62501908,3275.6,3275.0,1.6004]
[1737649359281,3.05223,3276.3,3275.1,0.55]
[1737649359437,0.61206532,3275.9,3275.0,1.6004]
[1737649359635,0.61206532,3275.9,3275.1,0.55]
[1737649359954,0.61206532,3275.9,3275.3,0.55]
[1737649360147,4.62331,3276.6,3275.3,0.55]
[1737649360148,3.0,3276.2,3275.3,0.55]
[1737649360452,3.05225,3276.3,3275.3,0.55]
[1737649360662,3.66340437,3276.0,3275.3,0.55]
[1737649360974,3.05184,3276.8,3275.7,2.1504]
[1737649361178,3.05184,3276.8,3275.9,0.55]
[1737649361381,0.62043638,3276.6,3275.9,0.55]
[1737649361564,3.05227,3276.3,3275.7,1.6004]
[1737649361774,3.05227,3276.3,3275.8,0.55]
[1737649362279,3.0,3276.2,3275.8,0.55]
[1737649362490,3.05205,3276.5,3275.8,0.55]
[1737649362491,3.05205,3276.5,3275.8,0.76504]
[1737649362643,3.0,3276.2,3275.8,0.55]
[1737649362973,0.62043638,3276.6,3275.8,0.55]
[1737649363573,3.62043638,3276.6,3275.8,0.55]
[1737649363783,3.67240638,3276.6,3275.8,0.55]
[1737649363998,3.05294,3275.6,3275.2,1.5321]
[1737649364284,3.0,3275.5,3275.2,1.5321]
[1737649364487,3.05245,3276.1,3275.2,1.5321]
[1737649364488,3.05229,3276.3,3275.3,0.15321]
[1737649364775,3.0,3276.2,3275.4,0.55]
[1737649365132,3.61649773,3276.0,3275.4,0.55]
[1737649365340,0.61649773,3276.0,3275.4,0.55]
[1737649365538,6.10416,3276.5,3275.4,0.55]
[1737649365780,3.05232,3276.2,3275.4,0.773531]
[1737649365981,0.59982903,3276.0,3275.4,0.773531]
[1737649366763,3.0,3276.4,3275.4,0.773531]
[1737649367066,3.0,3276.2,3275.4,0.773531]
[1737649367434,3.0,3275.9,3275.4,0.773531]
[1737649367730,3.0,3275.9,3275.2,1.5321]
[1737649367933,3.05267,3275.9,3275.2,1.5321]
[1737649368141,6.05256,3276.0,3275.2,1.5321]
[1737649368353,1.87215218,3278.3,3275.3,0.55]
[1737649368354,3.96094683,3277.2,3275.3,0.55]
[1737649368615,3.05083,3277.8,3275.2,1.5321]
[1737649368616,3.05186,3276.7,3275.7,0.55]
[1737649368817,0.60002197,3276.3,3276.1,0.55]
[1737649370054,0.60002197,3276.3,3276.0,1.6004]
[1737649370556,3.96094683,3277.2,3276.0,1.6004]
[1737649370557,0.25,3278.7,3276.2,3.60228]
[1737649370762,0.25,3278.7,3276.1,0.55]
[1737649370763,3.05068,3278.0,3276.5,0.55]
[1737649370920,3.05068,3278.0,3276.7,3.05177]
[1737649371119,1.5753,3278.3,3276.9,0.55]
[1737649371372,0.60704298,3277.7,3277.1,0.55]
[1737649371533,3.05045,3278.2,3277.1,0.55]
[1737649371734,0.60105986,3278.1,3277.1,3.0514]
[1737649372065,3.0,3277.4,3277.0,1.5877]
[1737649372364,3.0,3278.1,3277.0,1.5877]
[1737649372574,3.0,3277.4,3277.0,1.5877]
[1737649372884,3.05102,3277.6,3277.1,0.55]
[1737649373026,3.0,3277.4,3277.1,0.55]
[1737649373470,3.05125,3277.4,3277.1,0.55]
[1737649373618,3.05158,3277.0,3276.5,1.6349]
[1737649373818,0.60368511,3277.4,3275.7,1.6349]
[1737649374206,0.61613978,3276.8,3275.9,1.6349]
[1737649374368,6.05157,3277.1,3275.9,4.68748]
[1737649374526,0.61186868,3276.8,3276.1,0.55]
[1737649374858,1.6082,3277.8,3276.3,0.55]
[1737649375060,3.0,3277.1,3276.1,0.55]
[1737649375266,3.0,3277.2,3276.3,0.55]
[1737649375416,0.60338407,3276.9,3276.5,0.55]
[1737649376432,3.05189,3276.7,3276.5,0.55]
[1737649376634,3.0,3276.7,3276.5,0.55]
[1737649376831,3.0,3276.8,3276.5,0.55]
[1737649377063,0.60338407,3276.9,3276.7,0.55]
[1737649377623,3.05045,3278.2,3276.7,0.55]
[1737649377859,0.62548069,3277.2,3276.7,0.55]
[1737649378374,3.62548069,3277.2,3276.7,0.55]
[1737649378535,3.67688069,3277.2,3276.4,1.6657]
[1737649378721,3.05164,3277.0,3276.4,1.6657]
[1737649378923,6.05167,3276.9,3276.4,1.6657]
[1737649379538,3.0,3277.0,3276.5,0.55]
[1737649379864,3.0,3276.5,3276.0,1.527]
[1737649380067,3.61449342,3276.6,3276.1,0.1527]
[1737649380269,3.61449342,3276.6,3276.2,0.55]
[1737649380475,3.05094,3277.7,3276.5,3.60203]
[1737649380769,3.05094,3277.7,3276.2,0.55]
[1737649380770,0.60759586,3277.2,3276.6,2.1572]
[1737649381068,6.05085,3277.8,3276.6,4.65907]
[1737649381275,0.61541654,3277.3,3276.7,4.067737]
[1737649381570,3.05085,3277.8,3276.7,4.067737]
[1737649381876,0.60131604,3277.4,3276.7,1.015907]
[1737649382086,3.65255604,3277.4,3276.7,1.015907]
[1737649382227,3.65255604,3277.4,3276.7,0.55]
[1737649382228,0.60131604,3277.4,3276.7,0.55]
[1737649382572,0.60131604,3277.4,3276.9,0.55]
[1737649383073,0.60131604,3277.4,3277.1,0.55]
[1737649383435,0.60131604,3277.4,3277.0,6.81056]
[1737649383674,0.60131604,3277.4,3277.0,3.60156]
[1737649383825,3.0,3278.0,3277.1,0.910156]
[1737649384168,6.05048,3278.2,3277.3,0.55]
[1737649384469,0.61389051,3277.7,3277.3,0.55]
[1737649385453,2.66453051,3278.0,3277.3,0.55]
[1737649385631,0.61480613,3277.7,3277.3,0.55]
[1737649386057,0.61480613,3277.7,3277.3,0.7953356]
[1737649386261,0.15390748,3278.5,3277.3,0.7953356]
[1737649386428,1.6445,3279.4,3277.9,3.759]
[1737649386799,3.96094683,3279.8,3277.3,0.2453356]
[1737649386800,6.098,3279.8,3278.7,0.55]
[1737649386979,1.6445,3280.0,3279.0,0.55]
[1737649386980,0.15076124,3280.0,3279.0,0.55]
[1737649387192,0.28607438,3280.6,3279.8,1.591]
[1737649387328,0.28607438,3280.6,3279.9,0.55]
[1737649387529,0.1695681,3280.8,3279.9,0.55]
[1737649387732,0.61218136,3280.6,3279.9,3.759]
[1737649387971,0.61218136,3280.6,3279.9,3.5988]
[1737649388184,0.61218136,3280.6,3279.8,1.591]
[1737649388333,3.04896,3279.9,3279.4,1.5069]
[1737649388532,3.0486,3280.2,3279.4,1.5069]
[1737649388783,3.04851,3280.3,3279.4,1.5069]
[1737649388929,3.2176381,3280.8,3279.5,0.55]
[1737649389129,3.04863,3280.2,3279.7,0.55]
[1737649389443,3.0,3280.0,3279.7,0.55]
[1737649389639,3.0,3279.8,3279.5,0.55]
[1737649389842,0.59738088,3280.2,3279.5,0.55]
[1737649390243,3.0,3279.8,3279.5,0.55]
[1737649390473,3.0,3279.7,3279.5,0.55]
[1737649391055,6.04915,3279.6,3279.5,0.55]
[1737649391255,3.0,3279.6,3279.5,0.75569]
[1737649391671,3.04933,3279.4,3278.9,1.5549]
[1737649391873,3.0,3279.1,3278.9,1.5549]
[1737649392087,3.0,3280.0,3278.9,1.5549]
[1737649392252,3.04935,3279.4,3278.9,1.5549]
[1737649392573,3.0,3279.2,3278.9,1.5549]
[1737649392781,6.04952,3279.2,3278.9,1.71039]
[1737649393102,3.04943,3279.3,3279.0,0.55]
[1737649393237,3.04949,3279.3,3279.0,0.55]
[1737649393574,3.04965,3279.1,3278.9,1.5549]
[1737649393757,6.04948,3279.3,3278.9,1.71039]
[1737649393977,3.04971,3279.0,3278.9,1.71039]
[1737649394146,3.04971,3279.0,3278.9,2.1049]
[1737649394345,3.0,3279.0,3278.4,1.6058]
[1737649394547,6.04993,3278.8,3278.4,1.6058]
[1737649394774,4.5527,3279.5,3278.5,0.55]
[1737649394937,3.0,3279.9,3278.5,0.55]
[1737649395138,3.0,3279.9,3278.4,1.6058]
[1737649395139,6.04989,3278.8,3278.7,0.55]
[1737649395767,3.0,3278.8,3278.7,0.55]
[1737649396074,3.04945,3279.3,3278.7,0.55]
[1737649396275,7.00981683,3279.9,3278.4,1.6058]
[1737649396481,3.0,3278.8,3277.5,1.6351]
[1737649396777,3.05018,3278.5,3277.6,0.81351]
[1737649396986,3.05016,3278.6,3277.6,0.81351]
[1737649397168,0.62348656,3278.8,3277.5,4.68612]
[1737649397369,3.05064,3278.0,3277.5,1.6351]
[1737649397570,3.0,3278.1,3277.6,0.55]
[1737649397878,3.0499,3278.8,3277.8,1.6165]
[1737649398087,1.5869,3279.6,3277.8,1.6165]
[1737649398088,1.5869,3279.6,3277.9,0.55]
[1737649398248,1.5869,3279.6,3278.1,0.55]
[1737649398249,3.66434191,3278.8,3278.1,0.55]
[1737649398579,3.66434191,3278.8,3278.0,0.21665]
[1737649398580,3.61443191,3278.8,3278.5,0.55]
[1737649399139,0.61443191,3278.8,3278.5,0.55]
[1737649399368,3.05008,3278.6,3278.5,0.55]
[1737649399574,3.05054,3278.1,3278.0,1.6376]
[1737649399786,3.05072,3278.0,3277.4,1.5157]
[1737649400074,3.0,3278.7,3277.5,0.17610356]
[1737649400277,3.0511,3277.5,3277.4,1.5157]
[1737649401004,3.05154,3277.1,3276.9,1.6458]
[1737649401309,3.05203,3276.5,3276.4,1.5937]
[1737649401452,6.05166,3276.9,3275.5,3.209]
[1737649401796,3.05134,3277.3,3275.9,3.05252]
[1737649401951,3.05134,3277.3,3275.4,2.2437]
[1737649401952,5.50254683,3278.4,3276.6,3.209]
[1737649402151,5.50254683,3278.4,3276.5,2.1717]
[1737649402152,3.0509,3277.8,3276.7,3.759]
[1737649402352,3.05058,3278.1,3277.2,1.6476]
[1737649402569,3.0,3277.8,3277.4,0.55]
[1737649402765,3.0501,3278.6,3277.7,0.55]
[1737649403096,3.05018,3278.5,3277.8,1.5441]
[1737649403399,3.04971,3279.0,3277.9,3.759]
[1737649403696,3.05064,3278.0,3277.9,0.55]
[1737649403895,3.05044,3278.3,3277.9,0.20941]
[1737649404197,3.05035,3278.4,3278.0,0.55]
[1737649404462,1.6277,3279.3,3278.0,0.55]
[1737649404614,3.04952,3279.2,3278.0,3.759]
[1737649404916,0.61698148,3278.9,3278.5,0.55]
[1737649405064,0.61698148,3278.9,3278.7,0.55]
[1737649405267,3.04989,3278.8,3278.7,0.55]
[1737649405519,0.61698148,3278.9,3278.7,0.55]
[1737649405919,3.04989,3278.8,3278.4,1.5282]
[1737649406083,1.6299,3280.2,3278.4,1.5282]
[1737649406284,3.04894,3279.9,3278.6,0.55]
[1737649406482,3.04904,3279.8,3278.9,2.1868]
[1737649406795,1.6299,3280.2,3278.9,2.1868]
[1737649406796,0.62460908,3279.6,3278.9,2.1868]
[1737649407004,3.04868,3280.1,3279.1,0.55]
[1737649407182,1.6045,3280.6,3279.1,0.55]
[1737649407183,0.59757686,3279.9,3279.1,0.55]
[1737649407383,3.04863,3280.2,3279.0,3.59967]
[1737649407585,3.96094683,3279.9,3278.9,1.6368]
[1737649407787,3.04905,3279.7,3278.9,1.6368]
[1737649407986,0.60477731,3279.8,3278.9,1.6368]
[1737649408218,1.6045,3280.6,3278.9,1.6368]
[1737649408219,1.6045,3280.6,3279.0,0.55]
[1737649408534,3.2176781,3280.8,3279.0,0.55]
[1737649408535,0.60276363,3280.0,3279.0,0.55]
[1737649408701,3.0,3279.8,3279.1,0.21868]
[1737649408900,3.0,3279.7,3279.1,0.21868]
[1737649409286,3.0495,3279.3,3279.0,0.55]
[1737649409493,3.0495,3279.3,3278.9,1.6368]
[1737649409494,3.0,3280.0,3278.9,1.6368]
[1737649409735,6.09801,3279.8,3279.0,0.55]
[1737649409888,3.0,3280.7,3278.9,1.6368]
[1737649409889,3.04934,3279.4,3278.9,1.6368]
[1737649410095,3.0,3279.1,3278.9,1.6368]
[1737649410289,3.05008,3278.6,3278.0,1.5014]
[1737649410490,3.0,3278.7,3278.0,1.5014]
[1737649410760,6.05054,3278.1,3278.0,1.5014]
[1737649411032,3.05054,3278.1,3277.0,1.5797]
[1737649411237,3.0,3278.5,3276.6,0.5]
[1737649411534,7.01044683,3279.3,3276.6,0.5]
[1737649411535,3.0,3278.8,3277.3,3.05127]
[1737649411738,3.04957,3279.2,3277.8,3.05079]
[1737649411902,0.61130896,3278.8,3277.9,0.55]
[1737649412106,0.61130896,3278.8,3278.1,0.55]
[1737649412505,3.0,3278.5,3278.1,0.55]
[1737649412831,3.05031,3278.4,3278.1,0.55]
[1737649413031,3.0,3278.3,3278.0,1.576]
[1737649413242,3.0511,3277.5,3277.4,1.5218]
[1737649413423,3.0,3276.9,3276.8,8.0218]
[1737649413589,6.05166,3276.9,3276.8,6.5]
[1737649414008,4.71454,3278.1,3276.8,0.65]
[1737649414009,3.05107,3277.6,3276.8,0.65]
[1737649414332,6.101,3278.2,3276.9,3.60162]
[1737649414539,3.05077,3277.9,3276.9,0.55]
[1737649414835,3.0,3277.9,3277.1,0.55]
[1737649415044,3.05073,3277.9,3277.1,0.55]
[1737649415338,3.05073,3277.9,3276.9,0.55]
[1737649415503,3.05018,3278.5,3277.1,0.55]
[1737649415705,3.05018,3278.5,3277.0,0.20876]
[1737649415706,3.05059,3278.1,3277.4,2.0613]
[1737649415907,3.0,3278.1,3277.4,2.0613]
[1737649416219,3.0,3278.3,3277.4,2.0613]
[1737649416420,3.05058,3278.1,3277.6,0.55]
[1737649416605,3.59563594,3278.3,3277.6,0.55]
[1737649416814,3.05028,3278.4,3277.6,0.55]
[1737649417165,0.60301507,3278.4,3277.6,0.55]
[1737649417333,3.05064,3278.0,3277.6,0.55]
[1737649418127,3.05083,3277.8,3277.6,0.55]
[1737649418414,3.0,3277.9,3277.6,0.55]
[1737649418818,3.05091,3277.7,3277.4,1.5113]
[1737649419015,3.0,3277.6,3277.4,1.5113]
[1737649419215,3.0,3277.6,3277.0,1.77236]
[1737649419569,3.0,3277.8,3277.2,0.55]
[1737649419794,3.05073,3277.9,3277.2,0.55]
[1737649419795,3.0,3277.6,3277.2,0.55]
[1737649420000,0.61139234,3277.9,3277.2,0.55]
[1737649420001,3.61139234,3277.9,3277.2,0.55]
[1737649420324,3.61139234,3277.9,3277.4,0.55]
[1737649420596,1.6404,3278.9,3277.4,0.55]
[1737649420800,3.0,3278.0,3277.5,3.10202562]
[1737649420947,3.05084,3277.8,3277.3,35.0]
[1737649421296,6.71310749,3278.0,3277.4,0.55]
[1737649421593,0.61169749,3278.0,3277.4,0.55]
[1737649421742,3.05018,3278.5,3277.4,0.55]
[1737649421944,3.05018,3278.5,3277.6,2.1794]
[1737649422260,3.05028,3278.4,3277.6,2.1794]
[1737649422444,3.0,3278.7,3277.6,2.1794]
[1737649422656,0.61365043,3278.9,3277.8,0.55]
[1737649422847,0.61365043,3278.9,3278.2,0.55]
[1737649423052,0.61365043,3278.9,3278.4,0.55]
[1737649423262,3.61365043,3278.9,3278.4,0.55]
[1737649423461,3.05032,3278.4,3278.1,1.6294]
[1737649423651,3.0,3278.7,3278.2,0.55]
[1737649424083,3.05016,3278.6,3278.2,0.55]
[1737649424386,3.05063,3278.1,3277.2,1.5386]
[1737649424549,3.05063,3278.1,3277.3,35.0]
[1737649424987,3.0,3278.5,3277.3,35.0]
[1737649425195,3.05065,3278.0,3277.4,0.55]
[1737649425570,3.05065,3278.0,3277.3,0.55]
[1737649425768,6.10137,3278.0,3277.5,0.55]
[1737649425952,3.05084,3277.8,3277.4,35.20886]
[1737649426297,3.05043,3278.3,3277.5,0.55]
[1737649426592,0.61169433,3278.0,3277.5,0.55]
[1737649427211,1.5539,3279.3,3277.7,0.55]
[1737649427409,3.04997,3278.8,3278.0,0.55]
[1737649427613,0.60949706,3278.7,3278.2,0.55]
[1737649427830,3.05036,3278.3,3278.2,0.55]
[1737649428012,3.05031,3278.4,3278.1,1.5849]
[1737649428346,3.05031,3278.4,3277.8,0.20787]
[1737649428347,3.05061,3278.1,3277.8,0.20787]
[1737649428515,0.60949706,3278.7,3278.0,0.55]
[1737649428839,3.05026,3278.5,3278.0,0.55]
[1737649429009,3.0,3278.6,3278.0,0.55]
[1737649429217,3.05014,3278.6,3278.0,0.55]
[1737649429413,3.05018,3278.5,3278.0,0.55]
[1737649429744,3.0504,3278.3,3278.0,0.55]
[1737649430450,3.05048,3278.2,3278.0,0.55]
[1737649430606,3.05054,3278.1,3277.8,35.0]
[1737649430801,3.05087,3277.8,3277.2,1.5914]
[1737649431251,3.05087,3277.8,3277.4,0.55]
[1737649431434,3.05087,3277.8,3277.3,35.0]
[1737649431435,3.0,3278.2,3277.6,0.55]
[1737649431621,3.05047,3278.2,3277.6,0.55]
[1737649432120,0.61214466,3278.0,3277.5,3.10202562]
[1737649432446,3.051,3277.7,3277.5,3.10202562]
[1737649432648,3.05119,3277.5,3277.2,1.5914]
[1737649432848,3.05129,3277.3,3277.2,36.5914]
[1737649433020,3.05159,3277.0,3276.8,1.5905]
[1737649433202,3.05138,3277.2,3276.8,1.5905]
[1737649433408,3.05148,3277.1,3276.9,35.15905]
[1737649434019,3.05138,3277.2,3277.0,0.55]
[1737649434204,0.60329864,3277.3,3277.0,0.55]
[1737649435021,3.0,3278.1,3276.9,0.15905]
[1737649435238,0.60226152,3277.4,3277.0,0.55]
[1737649435437,3.05135,3277.3,3277.2,0.55]
[1737649435622,3.65346152,3277.4,3277.2,0.55]
[1737649435831,3.05129,3277.3,3277.1,35.0]
[1737649436030,6.65352152,3277.4,3277.1,35.0]
[1737649436442,6.65352152,3277.4,3277.2,0.55]
[1737649436754,3.05129,3277.3,3277.2,0.55]
[1737649436969,0.53607438,3279.2,3277.2,2.18244196]
[1737649437122,6.09942,3279.0,3277.2,2.18244196]
[1737649437467,3.66096942,3277.7,3277.3,0.55]
[1737649437964,3.05023,3278.5,3277.6,2.1551]
[1737649438139,3.64718616,3278.2,3277.6,2.1551]
[1737649438331,3.64718616,3278.2,3277.8,0.55]
[1737649438538,3.05055,3278.1,3277.8,0.55]
[1737649438739,0.59671616,3278.2,3277.8,0.55]
[1737649439344,0.59671616,3278.2,3277.9,35.0]
[1737649439570,3.05063,3278.1,3277.9,35.0]
[1737649439749,3.05064,3278.0,3277.9,35.0]
[1737649439955,3.05,3278.7,3277.9,35.0]
[1737649439956,3.0,3278.4,3278.0,0.55]
[1737649440139,3.0,3278.4,3277.9,37.21996643]
[1737649440140,3.05064,3278.0,3277.9,35.0]
[1737649440466,3.05065,3278.0,3277.6,1.6051]
[1737649440668,3.05065,3278.0,3277.7,0.55]
[1737649440868,3.05087,3277.8,3277.7,0.55]
[1737649441077,6.64683898,3278.1,3277.4,0.55]
[1737649441371,3.05089,3277.8,3277.0,35.0]
[1737649442078,3.05064,3278.0,3277.0,35.0]
[1737649442227,3.0,3278.2,3277.0,35.0]
[1737649442428,3.05115,3277.5,3277.0,35.0]
[1737649442870,3.0513,3277.3,3277.0,35.0]
[1737649443077,3.05147,3277.1,3277.0,35.0]
[1737649443231,3.05147,3277.1,3276.5,1.6073]
[1737649443232,3.05177,3276.8,3276.5,1.6073]
[1737649443428,3.05184,3276.8,3275.8,1.6073]
[1737649443673,3.05184,3276.8,3276.0,3.209]
[1737649443986,3.05064,3278.0,3276.9,4.8163]
[1737649444279,3.0,3277.6,3277.2,0.55]
[1737649444579,3.05099,3277.7,3276.9,1.6073]
[1737649444580,3.05113,3277.5,3276.9,1.6073]
[1737649444735,3.0,3277.6,3276.9,4.8163]
[1737649445078,3.0513,3277.3,3277.1,0.55]
[1737649445283,0.60458857,3277.7,3276.0,1.5327]
[1737649445284,3.05147,3277.1,3276.0,1.5327]
[1737649445428,3.0,3277.6,3276.0,1.5327]
[1737649445632,3.0521,3276.5,3276.0,1.5327]
[1737649445837,3.0521,3276.5,3276.0,4.7417]
[1737649446083,3.0517,3276.9,3276.1,3.7297705]
[1737649446231,3.05175,3276.9,3276.2,0.55]
[1737649446431,3.05175,3276.9,3276.0,1.5327]
[1737649446432,3.05169,3276.9,3276.0,4.58518]
[1737649446663,3.05169,3276.9,3276.2,3.759]
[1737649447074,3.05177,3276.8,3276.2,3.759]
[1737649447280,0.61359502,3277.2,3276.4,3.759]
[1737649447577,0.61359502,3277.2,3276.8,4.7145]
[1737649447878,3.61359502,3277.2,3276.9,0.55]
[1737649448080,3.0515,3277.1,3276.9,0.55]
[1737649448538,3.61359502,3277.2,3276.9,0.55]
[1737649448886,3.05153,3277.1,3276.9,0.75555]
[1737649449032,3.05181,3276.8,3276.3,1.9751]
[1737649449237,3.05181,3276.8,3276.4,0.55]
[1737649449642,3.0516,3277.0,3276.4,0.55]
[1737649449846,3.05175,3276.9,3276.4,0.55]
[1737649450048,3.05181,3276.8,3276.4,0.55]
[1737649450277,3.0516,3277.0,3276.6,0.55]
[1737649450578,3.05164,3277.0,3276.6,0.55]
[1737649450779,5.13989502,3277.2,3276.3,1.5992]
[1737649450939,3.0525,3276.0,3275.0,1.5239]
[1737649451337,3.05251,3276.0,3275.2,3.05324]
[1737649451572,3.05231,3276.3,3275.3,3.358384]
[1737649451784,3.05192,3276.7,3275.4,4.8616]
[1737649451994,3.05078,3277.9,3276.3,0.55]